[Event "Late-Titled-Tuesday-Blitz-March-19-2024"]
[Site "Chess.com"]
[Date "2024.03.19"]
[Round "3"]
[White "Kampkatten"]
[Black "AmanteDeMoi"]
[Result "1-0"]
[WhiteElo "2848"]
[BlackElo "2583"]
[TimeControl "180+1"]
[EndTime "14:27:43 PDT"]
[Termination "Kampkatten won by checkmate"]

1. Nf3 {[%clk 0:03:00.9]} 1... g6 {[%clk 0:02:59.3]} 2. e4 {[%clk 0:02:59.2]}
2... Bg7 {[%clk 0:02:59.4]} 3. d4 {[%clk 0:02:59.5]} 3... d6 {[%clk 0:02:56.9]}
4. Be2 {[%clk 0:02:59.7]} 4... e5 {[%clk 0:02:56.2]} 5. dxe5 {[%clk 0:02:58.5]}
5... dxe5 {[%clk 0:02:56]} 6. Qxd8+ {[%clk 0:02:58.6]} 6... Kxd8 {[%clk
0:02:56.5]} 7. O-O {[%clk 0:02:56.9]} 7... f6 {[%clk 0:02:56.3]} 8. Be3 {[%clk
0:02:52.7]} 8... Be6 {[%clk 0:02:55.8]} 9. Nfd2 {[%clk 0:02:35.5]} 9... Bh6
{[%clk 0:02:51.5]} 10. Bxh6 {[%clk 0:02:32.6]} 10... Nxh6 {[%clk 0:02:51.2]} 11.
Bc4 {[%clk 0:02:33.5]} 11... Ke7 {[%clk 0:02:39.5]} 12. Nc3 {[%clk 0:02:31.5]}
12... c6 {[%clk 0:02:38.8]} 13. Bxe6 {[%clk 0:02:30.1]} 13... Kxe6 {[%clk
0:02:38.9]} 14. Nc4 {[%clk 0:02:30.3]} 14... Nf7 {[%clk 0:02:36]} 15. a4 {[%clk
0:02:27.7]} 15... Rd8 {[%clk 0:02:31.7]} 16. Na5 {[%clk 0:02:20.7]} 16... b6
{[%clk 0:02:24.4]} 17. Nc4 {[%clk 0:02:16.2]} 17... Rd4 {[%clk 0:02:23.9]} 18.
b3 {[%clk 0:02:13.8]} 18... Na6 {[%clk 0:02:07.5]} 19. f3 {[%clk 0:01:52.5]}
19... Nc5 {[%clk 0:01:33.9]} 20. Rfd1 {[%clk 0:01:43.7]} 20... Rad8 {[%clk
0:01:32.5]} 21. Rxd4 {[%clk 0:01:43.7]} 21... exd4 {[%clk 0:01:26]} 22. Ne2
{[%clk 0:01:34.9]} 22... Ne5 {[%clk 0:01:18.9]} 23. Nf4+ {[%clk 0:01:26.8]}
23... Ke7 {[%clk 0:01:18.1]} 24. Nd2 {[%clk 0:01:11.6]} 24... d3 {[%clk
0:01:13.1]} 25. c3 {[%clk 0:01:10.3]} 25... a5 {[%clk 0:01:02.8]} 26. Kf2 {[%clk
0:01:09]} 26... g5 {[%clk 0:00:54.3]} 27. Nh5 {[%clk 0:01:09.4]} 27... Ke6
{[%clk 0:00:46.4]} 28. Ng7+ {[%clk 0:01:08.1]} 28... Kf7 {[%clk 0:00:46.6]} 29.
Nf5 {[%clk 0:01:08.7]} 29... Ra8 {[%clk 0:00:37.6]} 30. Ke3 {[%clk 0:01:06]}
30... Ra7 {[%clk 0:00:30.7]} 31. g3 {[%clk 0:01:01.9]} 31... h5 {[%clk
0:00:25.4]} 32. h3 {[%clk 0:01:00.3]} 32... Ra6 {[%clk 0:00:23]} 33. f4 {[%clk
0:00:59]} 33... gxf4+ {[%clk 0:00:19.4]} 34. gxf4 {[%clk 0:00:59.9]} 34... Ng6
{[%clk 0:00:19.4]} 35. Rg1 {[%clk 0:00:54]} 35... Nf8 {[%clk 0:00:05.6]} 36.
Rg7+ {[%clk 0:00:53]} 36... Ke6 {[%clk 0:00:05.7]} 37. Re7# {[%clk 0:00:52.3]}
1-0

[Event "Late-Titled-Tuesday-Blitz-March-19-2024"]
[Site "Chess.com"]
[Date "2024.03.19"]
[Round "3"]
[White "BabageldiAnnaberdiyev"]
[Black "kinga2008"]
[Result "1-0"]
[WhiteElo "2627"]
[BlackElo "2381"]
[TimeControl "180+1"]
[EndTime "14:27:44 PDT"]
[Termination "BabageldiAnnaberdiyev won by resignation"]

1. e4 {[%clk 0:03:00.9]} 1... c5 {[%clk 0:02:49.8]} 2. Nf3 {[%clk 0:03:00.9]}
2... Nc6 {[%clk 0:02:48.8]} 3. d3 {[%clk 0:03:01.3]} 3... e5 {[%clk 0:02:49.1]}
4. Nbd2 {[%clk 0:03:01.8]} 4... Nf6 {[%clk 0:02:49.8]} 5. g3 {[%clk 0:03:02.4]}
5... d5 {[%clk 0:02:50.3]} 6. Bg2 {[%clk 0:03:02.6]} 6... dxe4 {[%clk 0:02:50]}
7. dxe4 {[%clk 0:03:03.5]} 7... Bg4 {[%clk 0:02:50.4]} 8. h3 {[%clk 0:03:02.8]}
8... Bh5 {[%clk 0:02:50.4]} 9. O-O {[%clk 0:03:02.1]} 9... Be7 {[%clk
0:02:51.1]} 10. c3 {[%clk 0:03:02.3]} 10... O-O {[%clk 0:02:51.5]} 11. Qe2
{[%clk 0:03:01.5]} 11... Qd7 {[%clk 0:02:51.4]} 12. Rd1 {[%clk 0:03:01]} 12...
Rad8 {[%clk 0:02:51.2]} 13. Re1 {[%clk 0:02:55.3]} 13... Qd3 {[%clk 0:02:51]}
14. Qxd3 {[%clk 0:02:54.1]} 14... Rxd3 {[%clk 0:02:51.9]} 15. g4 {[%clk
0:02:50.8]} 15... Bg6 {[%clk 0:02:51.6]} 16. Bf1 {[%clk 0:02:50.3]} 16... Rd7
{[%clk 0:02:48.2]} 17. Nh4 {[%clk 0:02:37.9]} 17... Rfd8 {[%clk 0:02:42.9]} 18.
Nxg6 {[%clk 0:02:37.5]} 18... hxg6 {[%clk 0:02:34.3]} 19. Nc4 {[%clk 0:02:37.9]}
19... Ne8 {[%clk 0:01:43.5]} 20. a4 {[%clk 0:02:36.5]} 20... Nd6 {[%clk
0:01:40.2]} 21. Nxd6 {[%clk 0:02:22]} 21... Rxd6 {[%clk 0:01:41.1]} 22. Be3
{[%clk 0:02:21.3]} 22... b6 {[%clk 0:01:32.2]} 23. Bc4 {[%clk 0:02:21.8]} 23...
Na5 {[%clk 0:01:30.1]} 24. Bd5 {[%clk 0:02:19.6]} 24... Nc6 {[%clk 0:01:11.1]}
25. Kf1 {[%clk 0:02:16.9]} 25... Kf8 {[%clk 0:01:09.9]} 26. Ke2 {[%clk
0:02:16.6]} 26... Bh4 {[%clk 0:01:05.7]} 27. Red1 {[%clk 0:02:16]} 27... Ne7
{[%clk 0:01:05.9]} 28. Bb3 {[%clk 0:02:12.8]} 28... Rxd1 {[%clk 0:01:03.8]} 29.
Bxd1 {[%clk 0:02:13.7]} 29... Rxd1 {[%clk 0:01:04.5]} 30. Rxd1 {[%clk
0:02:12.7]} 30... Ke8 {[%clk 0:01:04.9]} 31. a5 {[%clk 0:02:08]} 31... Nc8
{[%clk 0:01:01.4]} 32. axb6 {[%clk 0:02:08]} 32... axb6 {[%clk 0:01:02.3]} 33.
Ra1 {[%clk 0:02:07.4]} 33... Bd8 {[%clk 0:00:58.1]} 34. Ra8 {[%clk 0:02:03.5]}
34... Kd7 {[%clk 0:00:58.4]} 35. f3 {[%clk 0:02:00]} 35... Kc7 {[%clk
0:00:58.4]} 36. Ra1 {[%clk 0:01:58.1]} 36... Nd6 {[%clk 0:00:52.3]} 37. Kd3
{[%clk 0:01:55.2]} 37... Kb7 {[%clk 0:00:48.1]} 38. Rh1 {[%clk 0:01:54.2]} 38...
Bh4 {[%clk 0:00:31.8]} 39. b3 {[%clk 0:01:47.3]} 39... Kc6 {[%clk 0:00:24.6]}
40. g5 {[%clk 0:01:46.4]} 40... f5 {[%clk 0:00:23.7]} 41. gxf6 {[%clk
0:01:38.6]} 41... gxf6 {[%clk 0:00:24.3]} 42. Rg1 {[%clk 0:01:37.8]} 42... g5
{[%clk 0:00:22.3]} 43. Rg2 {[%clk 0:01:32.5]} 43... Ne8 {[%clk 0:00:16.5]} 44.
Ra2 {[%clk 0:01:28.6]} 44... Kb7 {[%clk 0:00:16.4]} 45. b4 {[%clk 0:01:28.5]}
45... cxb4 {[%clk 0:00:15.7]} 46. cxb4 {[%clk 0:01:28.7]} 46... Be1 {[%clk
0:00:15.6]} 47. Kc4 {[%clk 0:01:26.9]} 47... Kc6 {[%clk 0:00:14.4]} 48. b5+
{[%clk 0:01:26.7]} 48... Kb7 {[%clk 0:00:11]} 49. Bd2 {[%clk 0:01:21.5]} 49...
Bf2 {[%clk 0:00:08.4]} 50. Bb4 {[%clk 0:01:21.4]} 50... Nc7 {[%clk 0:00:07.9]}
51. Rxf2 {[%clk 0:01:20.2]} 1-0

[Event "Late-Titled-Tuesday-Blitz-March-19-2024"]
[Site "Chess.com"]
[Date "2024.03.19"]
[Round "3"]
[White "dropstoneDP"]
[Black "FrankDux44"]
[Result "1-0"]
[WhiteElo "2984"]
[BlackElo "2716"]
[TimeControl "180+1"]
[EndTime "14:27:45 PDT"]
[Termination "dropstoneDP won by resignation"]

1. e4 {[%clk 0:03:00.9]} 1... c5 {[%clk 0:03:00.2]} 2. Nf3 {[%clk 0:02:59]} 2...
d6 {[%clk 0:03:00.5]} 3. d4 {[%clk 0:02:51.9]} 3... cxd4 {[%clk 0:03:00.8]} 4.
Nxd4 {[%clk 0:02:52.8]} 4... Nf6 {[%clk 0:03:00.5]} 5. Nc3 {[%clk 0:02:53.4]}
5... g6 {[%clk 0:03:00.9]} 6. Be2 {[%clk 0:02:50.2]} 6... Bg7 {[%clk 0:02:50.4]}
7. Be3 {[%clk 0:02:50.7]} 7... O-O {[%clk 0:02:25]} 8. Qd2 {[%clk 0:02:50.3]}
8... Nc6 {[%clk 0:02:24.7]} 9. h4 {[%clk 0:02:50.5]} 9... d5 {[%clk 0:02:10.5]}
10. h5 {[%clk 0:02:43.3]} 10... dxe4 {[%clk 0:01:45.6]} 11. O-O-O {[%clk
0:02:38.5]} 11... Nxd4 {[%clk 0:01:44.4]} 12. Bxd4 {[%clk 0:02:37]} 12... Qc7
{[%clk 0:01:21.6]} 13. h6 {[%clk 0:02:30.7]} 13... Bh8 {[%clk 0:01:21.1]} 14.
Qe3 {[%clk 0:02:23.9]} 14... Be6 {[%clk 0:01:16.5]} 15. Kb1 {[%clk 0:02:09.1]}
15... Rac8 {[%clk 0:01:14.9]} 16. Rd2 {[%clk 0:02:07.4]} 16... a6 {[%clk
0:01:07.6]} 17. Rhd1 {[%clk 0:02:05.2]} 17... b5 {[%clk 0:01:07.6]} 18. a3
{[%clk 0:01:49]} 18... Qc6 {[%clk 0:00:53.7]} 19. Qf4 {[%clk 0:01:27.4]} 19...
Rfe8 {[%clk 0:00:51]} 20. g4 {[%clk 0:01:26.8]} 20... Qd6 {[%clk 0:00:23.4]} 21.
Be5 {[%clk 0:01:19.8]} 21... Qc5 {[%clk 0:00:23.4]} 22. Bd4 {[%clk 0:01:14.7]}
22... Qd6 {[%clk 0:00:23]} 23. Qxd6 {[%clk 0:01:03.1]} 23... exd6 {[%clk
0:00:23]} 24. g5 {[%clk 0:01:03.8]} 24... Ng4 {[%clk 0:00:21.1]} 25. Bxh8 {[%clk
0:01:02.8]} 25... Kxh8 {[%clk 0:00:22]} 26. Bxg4 {[%clk 0:00:58.3]} 26... Bxg4
{[%clk 0:00:22.9]} 27. Re1 {[%clk 0:00:58.8]} 27... Bf5 {[%clk 0:00:18.9]} 28.
Rxd6 {[%clk 0:00:56.3]} 28... Rcd8 {[%clk 0:00:17.9]} 29. Rxd8 {[%clk
0:00:49.8]} 29... Rxd8 {[%clk 0:00:18.8]} 30. Nxe4 {[%clk 0:00:49.1]} 30... Re8
{[%clk 0:00:18.9]} 31. f3 {[%clk 0:00:49.2]} 31... f6 {[%clk 0:00:15.9]} 32.
gxf6 {[%clk 0:00:45.7]} 32... Bxe4 {[%clk 0:00:14.2]} 33. f7 {[%clk 0:00:43.7]}
1-0

[Event "Late-Titled-Tuesday-Blitz-March-19-2024"]
[Site "Chess.com"]
[Date "2024.03.19"]
[Round "3"]
[White "kingofthenil"]
[Black "Polish_fighter3000"]
[Result "0-1"]
[WhiteElo "2767"]
[BlackElo "3129"]
[TimeControl "180+1"]
[EndTime "14:27:46 PDT"]
[Termination "Polish_fighter3000 won by resignation"]

1. e4 {[%clk 0:03:00]} 1... c5 {[%clk 0:02:55.6]} 2. Nf3 {[%clk 0:02:59.1]} 2...
e6 {[%clk 0:02:55.7]} 3. d4 {[%clk 0:02:59.2]} 3... cxd4 {[%clk 0:02:56.6]} 4.
Nxd4 {[%clk 0:02:59.8]} 4... Nc6 {[%clk 0:02:56.8]} 5. c3 {[%clk 0:02:58.8]}
5... Qc7 {[%clk 0:02:51.8]} 6. g3 {[%clk 0:02:57.8]} 6... Nf6 {[%clk 0:02:47.9]}
7. Bg2 {[%clk 0:02:58.1]} 7... d6 {[%clk 0:02:38.1]} 8. O-O {[%clk 0:02:57.9]}
8... Be7 {[%clk 0:02:37.8]} 9. Na3 {[%clk 0:02:45.2]} 9... O-O {[%clk
0:02:31.8]} 10. Ndb5 {[%clk 0:02:21.1]} 10... Qb8 {[%clk 0:02:29.6]} 11. Nc4
{[%clk 0:02:21.7]} 11... Rd8 {[%clk 0:02:23.7]} 12. Bf4 {[%clk 0:02:12]} 12...
a6 {[%clk 0:02:08.1]} 13. Nbxd6 {[%clk 0:02:04.6]} 13... e5 {[%clk 0:02:03]} 14.
Nxe5 {[%clk 0:01:19.7]} 14... Bxd6 {[%clk 0:01:59.2]} 15. Nxc6 {[%clk
0:00:46.9]} 15... bxc6 {[%clk 0:02:00.1]} 16. e5 {[%clk 0:00:46.2]} 16... Bc7
{[%clk 0:02:00.2]} 17. Qa4 {[%clk 0:00:46.2]} 17... Bxe5 {[%clk 0:01:56.5]} 18.
Qxc6 {[%clk 0:00:42.6]} 18... Ra7 {[%clk 0:01:52.6]} 19. Rad1 {[%clk 0:00:42]}
19... Bd7 {[%clk 0:01:26.5]} 20. Bxe5 {[%clk 0:00:35.9]} 20... Qxe5 {[%clk
0:01:27.4]} 21. Qb6 {[%clk 0:00:35.9]} 21... Qb8 {[%clk 0:01:25.3]} 22. Qd4
{[%clk 0:00:33.6]} 22... Rc7 {[%clk 0:01:19.9]} 23. b4 {[%clk 0:00:28.7]} 23...
Rdc8 {[%clk 0:01:15.3]} 24. Qd6 {[%clk 0:00:16.9]} 24... Rxc3 {[%clk 0:01:11.2]}
25. Qxa6 {[%clk 0:00:16.7]} 25... Bb5 {[%clk 0:01:11.5]} 26. Qa5 {[%clk
0:00:14.1]} 26... Bxf1 {[%clk 0:01:12]} 27. Bxf1 {[%clk 0:00:13.3]} 27... Rc1
{[%clk 0:01:11.8]} 28. Rxc1 {[%clk 0:00:04.5]} 28... Rxc1 {[%clk 0:01:12.7]} 29.
b5 {[%clk 0:00:05.4]} 29... h5 {[%clk 0:01:12]} 30. a4 {[%clk 0:00:04.4]} 30...
Rb1 {[%clk 0:00:58.6]} 31. Qd2 {[%clk 0:00:02.2]} 31... Qe8 {[%clk 0:00:48.6]}
32. Qd3 {[%clk 0:00:01.2]} 32... Qe4 {[%clk 0:00:42.8]} 33. a5 {[%clk
0:00:02.1]} 33... Qxd3 {[%clk 0:00:42.7]} 0-1

[Event "Late-Titled-Tuesday-Blitz-March-19-2024"]
[Site "Chess.com"]
[Date "2024.03.19"]
[Round "3"]
[White "Pingah9"]
[Black "NikoTheodorou"]
[Result "0-1"]
[WhiteElo "2575"]
[BlackElo "3097"]
[TimeControl "180+1"]
[EndTime "14:27:48 PDT"]
[Termination "NikoTheodorou won by checkmate"]

1. e4 {[%clk 0:03:00.9]} 1... e5 {[%clk 0:02:19.4]} 2. Nf3 {[%clk 0:02:59.1]}
2... Nc6 {[%clk 0:02:19.8]} 3. Bb5 {[%clk 0:02:59.2]} 3... a6 {[%clk 0:02:20.1]}
4. Ba4 {[%clk 0:02:59.5]} 4... f5 {[%clk 0:02:20.6]} 5. d3 {[%clk 0:02:58]} 5...
fxe4 {[%clk 0:02:21]} 6. dxe4 {[%clk 0:02:58.7]} 6... Nf6 {[%clk 0:02:21.7]} 7.
Be3 {[%clk 0:02:59]} 7... d6 {[%clk 0:02:17.6]} 8. Nc3 {[%clk 0:02:54.4]} 8...
Be7 {[%clk 0:02:17.9]} 9. h3 {[%clk 0:02:48]} 9... b5 {[%clk 0:02:17.7]} 10. Bb3
{[%clk 0:02:47.4]} 10... Na5 {[%clk 0:02:18.5]} 11. Qd3 {[%clk 0:02:30.7]} 11...
Nxb3 {[%clk 0:02:17.5]} 12. axb3 {[%clk 0:02:30.4]} 12... Bb7 {[%clk 0:02:17.4]}
13. Nd2 {[%clk 0:02:25.4]} 13... O-O {[%clk 0:02:14]} 14. O-O {[%clk 0:02:19.8]}
14... c6 {[%clk 0:01:58.3]} 15. Ne2 {[%clk 0:02:16.8]} 15... d5 {[%clk
0:01:51.8]} 16. Ng3 {[%clk 0:01:59.3]} 16... Qe8 {[%clk 0:01:25.3]} 17. Nf5
{[%clk 0:01:52.3]} 17... Rd8 {[%clk 0:01:24.9]} 18. Bb6 {[%clk 0:01:40.7]} 18...
Rd7 {[%clk 0:01:23.7]} 19. Qg3 {[%clk 0:01:37.4]} 19... g6 {[%clk 0:01:04.9]}
20. Rfe1 {[%clk 0:01:05.5]} 20... Nh5 {[%clk 0:00:53.3]} 21. Qg4 {[%clk
0:01:02.3]} 21... Bc8 {[%clk 0:00:48.3]} 22. Nh6+ {[%clk 0:00:49.9]} 22... Kh8
{[%clk 0:00:43.2]} 23. Qe6 {[%clk 0:00:37.6]} 23... Bg5 {[%clk 0:00:39.6]} 24.
Qxc6 {[%clk 0:00:21.2]} 24... Bxd2 {[%clk 0:00:33.6]} 25. exd5 {[%clk
0:00:17.8]} 25... Bxh6 {[%clk 0:00:33.1]} 26. Bc7 {[%clk 0:00:15.8]} 26... Bg7
{[%clk 0:00:32.5]} 27. Re2 {[%clk 0:00:14.6]} 27... Nf4 {[%clk 0:00:29.5]} 28.
Re3 {[%clk 0:00:13.6]} 28... Qf7 {[%clk 0:00:29.1]} 29. d6 {[%clk 0:00:12.4]}
29... Ne6 {[%clk 0:00:28.8]} 30. Bb8 {[%clk 0:00:11.5]} 30... Bb7 {[%clk
0:00:27.3]} 31. Qb6 {[%clk 0:00:07.4]} 31... Qxf2+ {[%clk 0:00:27.3]} 32. Kh1
{[%clk 0:00:07.4]} 32... Qxg2# {[%clk 0:00:28.2]} 0-1

[Event "Late-Titled-Tuesday-Blitz-March-19-2024"]
[Site "Chess.com"]
[Date "2024.03.19"]
[Round "3"]
[White "chessamical"]
[Black "GiorgianBarbosa"]
[Result "0-1"]
[WhiteElo "2267"]
[BlackElo "2532"]
[TimeControl "180+1"]
[EndTime "14:27:49 PDT"]
[Termination "GiorgianBarbosa won on time"]

1. d4 {[%clk 0:02:59.5]} 1... Nf6 {[%clk 0:02:58.9]} 2. c4 {[%clk 0:02:53.5]}
2... g6 {[%clk 0:02:59.8]} 3. f3 {[%clk 0:02:49.2]} 3... Bg7 {[%clk 0:03:00.7]}
4. e4 {[%clk 0:02:48.6]} 4... O-O {[%clk 0:03:01.6]} 5. Nc3 {[%clk 0:02:48.8]}
5... c5 {[%clk 0:03:00.9]} 6. d5 {[%clk 0:02:48.3]} 6... d6 {[%clk 0:03:01.3]}
7. Nge2 {[%clk 0:02:48.1]} 7... e6 {[%clk 0:03:02.2]} 8. Ng3 {[%clk 0:02:44.9]}
8... exd5 {[%clk 0:03:03.1]} 9. cxd5 {[%clk 0:02:45.2]} 9... a6 {[%clk
0:03:03.5]} 10. a4 {[%clk 0:02:44.8]} 10... h5 {[%clk 0:03:03.5]} 11. Be2 {[%clk
0:02:43]} 11... h4 {[%clk 0:03:02.8]} 12. Nf1 {[%clk 0:02:42.9]} 12... Nh5
{[%clk 0:02:51.6]} 13. g4 {[%clk 0:02:31.8]} 13... Nf6 {[%clk 0:02:41.1]} 14.
Bg5 {[%clk 0:02:29.6]} 14... Nbd7 {[%clk 0:02:41.3]} 15. Qd2 {[%clk 0:02:07.1]}
15... h3 {[%clk 0:02:35.5]} 16. Ne3 {[%clk 0:01:50.3]} 16... Rb8 {[%clk
0:02:03.1]} 17. Nc4 {[%clk 0:01:46.4]} 17... Qc7 {[%clk 0:01:59.6]} 18. Bf4
{[%clk 0:01:22.8]} 18... Ne8 {[%clk 0:01:52.4]} 19. a5 {[%clk 0:01:00.5]} 19...
b5 {[%clk 0:01:51.9]} 20. axb6 {[%clk 0:00:50.7]} 20... Nxb6 {[%clk 0:01:52.3]}
21. O-O {[%clk 0:00:19]} 21... Nxc4 {[%clk 0:01:47.9]} 22. Bxc4 {[%clk
0:00:18.5]} 22... Bd4+ {[%clk 0:01:48.7]} 23. Kh1 {[%clk 0:00:17.1]} 23... Rb4
{[%clk 0:01:46.2]} 24. b3 {[%clk 0:00:15.6]} 24... Nf6 {[%clk 0:01:41.6]} 25.
Rae1 {[%clk 0:00:15]} 25... Nd7 {[%clk 0:01:41.5]} 26. Bh6 {[%clk 0:00:13.1]}
26... Re8 {[%clk 0:01:41.3]} 27. Ne2 {[%clk 0:00:13]} 27... Bh8 {[%clk
0:01:35.5]} 28. Ng1 {[%clk 0:00:09.3]} 28... Ne5 {[%clk 0:01:30.7]} 29. Nxh3
{[%clk 0:00:09.1]} 29... Nxc4 {[%clk 0:01:27.3]} 30. bxc4 {[%clk 0:00:10]} 30...
Qe7 {[%clk 0:01:23.3]} 31. Bg5 {[%clk 0:00:09]} 31... Qe5 {[%clk 0:01:20.1]} 32.
Bf4 {[%clk 0:00:07.9]} 32... Qf6 {[%clk 0:01:17.9]} 33. g5 {[%clk 0:00:07]}
33... Qe7 {[%clk 0:01:15.4]} 34. Nf2 {[%clk 0:00:06.6]} 34... Rxc4 {[%clk
0:01:10.7]} 35. h3 {[%clk 0:00:05.4]} 35... Rb4 {[%clk 0:01:10.3]} 36. Ng4
{[%clk 0:00:05.3]} 36... Bxg4 {[%clk 0:01:09.3]} 37. hxg4 {[%clk 0:00:05.2]}
37... a5 {[%clk 0:01:07.7]} 38. Rf2 {[%clk 0:00:04.9]} 38... a4 {[%clk
0:01:07.8]} 39. Rh2 {[%clk 0:00:05]} 39... Be5 {[%clk 0:01:03.6]} 40. Rh6 {[%clk
0:00:01.7]} 40... Rb2 {[%clk 0:00:56.6]} 0-1

[Event "Late-Titled-Tuesday-Blitz-March-19-2024"]
[Site "Chess.com"]
[Date "2024.03.19"]
[Round "3"]
[White "SharathRk6"]
[Black "djano"]
[Result "1-0"]
[WhiteElo "2448"]
[BlackElo "2618"]
[TimeControl "180+1"]
[EndTime "14:27:54 PDT"]
[Termination "SharathRk6 won by checkmate"]

1. e4 {[%clk 0:02:59.5]} 1... c5 {[%clk 0:02:56.3]} 2. Nf3 {[%clk 0:02:58.9]}
2... Nc6 {[%clk 0:02:56.3]} 3. Bb5 {[%clk 0:02:58]} 3... g5 {[%clk 0:02:56.7]}
4. Nxg5 {[%clk 0:02:55.6]} 4... Nf6 {[%clk 0:02:54.2]} 5. d3 {[%clk 0:02:50.4]}
5... Rg8 {[%clk 0:02:45.4]} 6. O-O {[%clk 0:02:49]} 6... Nd4 {[%clk 0:02:34.4]}
7. Bc4 {[%clk 0:02:43.1]} 7... d5 {[%clk 0:02:34.4]} 8. exd5 {[%clk 0:02:43]}
8... h6 {[%clk 0:02:33]} 9. Ne4 {[%clk 0:02:26.3]} 9... b5 {[%clk 0:01:46.4]}
10. Nxf6+ {[%clk 0:02:24.1]} 10... exf6 {[%clk 0:01:46.1]} 11. Re1+ {[%clk
0:02:22.6]} 11... Be7 {[%clk 0:01:45.2]} 12. Bb3 {[%clk 0:02:07.2]} 12... Bg4
{[%clk 0:01:32.8]} 13. Qd2 {[%clk 0:01:44.2]} 13... Nf3+ {[%clk 0:01:08.9]} 14.
gxf3 {[%clk 0:01:43.2]} 14... Bh3+ {[%clk 0:01:08.3]} 15. Kh1 {[%clk 0:01:43]}
15... Bg2+ {[%clk 0:01:07.8]} 16. Kg1 {[%clk 0:01:43.4]} 16... Bxf3+ {[%clk
0:00:46.1]} 17. Kf1 {[%clk 0:01:39.5]} 17... Qd7 {[%clk 0:00:45.4]} 18. Rxe7+
{[%clk 0:01:34.2]} 18... Qxe7 {[%clk 0:00:39.7]} 19. Qe3 {[%clk 0:01:33.1]}
19... Be2+ {[%clk 0:00:22.4]} 20. Kxe2 {[%clk 0:01:24.3]} 20... Rg1 {[%clk
0:00:20.4]} 21. Qxe7+ {[%clk 0:01:21]} 21... Kxe7 {[%clk 0:00:19.7]} 22. Be3
{[%clk 0:01:21.6]} 22... Kd6 {[%clk 0:00:16.6]} 23. a4 {[%clk 0:01:11.5]} 23...
b4 {[%clk 0:00:15.4]} 24. c3 {[%clk 0:00:58.1]} 24... f5 {[%clk 0:00:11.5]} 25.
c4 {[%clk 0:00:50.8]} 25... Re8 {[%clk 0:00:10.9]} 26. Kf3 {[%clk 0:00:50.4]}
26... Reg8 {[%clk 0:00:09]} 27. Bc2 {[%clk 0:00:47.8]} 27... a5 {[%clk
0:00:08.4]} 28. Ra2 {[%clk 0:00:42.7]} 28... h5 {[%clk 0:00:05.3]} 29. Nd2
{[%clk 0:00:41.3]} 29... h4 {[%clk 0:00:05.1]} 30. Nb3 {[%clk 0:00:40.9]} 30...
Rh1 {[%clk 0:00:04.5]} 31. Bf4+ {[%clk 0:00:39.9]} 31... Kd7 {[%clk 0:00:04.3]}
32. Nxc5+ {[%clk 0:00:39.1]} 32... Kc8 {[%clk 0:00:03.8]} 33. d4 {[%clk
0:00:37.9]} 33... h3 {[%clk 0:00:04]} 34. Bxf5+ {[%clk 0:00:37.6]} 34... Kd8
{[%clk 0:00:03.4]} 35. b3 {[%clk 0:00:37.4]} 35... Rhg1 {[%clk 0:00:02.4]} 36.
Re2 {[%clk 0:00:34]} 36... R1g2 {[%clk 0:00:02.3]} 37. Nb7# {[%clk 0:00:34.1]}
1-0

[Event "Late-Titled-Tuesday-Blitz-March-19-2024"]
[Site "Chess.com"]
[Date "2024.03.19"]
[Round "3"]
[White "Nicolik"]
[Black "BardArtem"]
[Result "0-1"]
[WhiteElo "2518"]
[BlackElo "2741"]
[TimeControl "180+1"]
[EndTime "14:27:55 PDT"]
[Termination "BardArtem won by resignation"]

1. d4 {[%clk 0:03:00.9]} 1... d5 {[%clk 0:02:54.3]} 2. c4 {[%clk 0:03:01]} 2...
dxc4 {[%clk 0:02:55.2]} 3. e4 {[%clk 0:03:00.8]} 3... b5 {[%clk 0:02:45.9]} 4.
a4 {[%clk 0:03:00.7]} 4... c6 {[%clk 0:02:45.6]} 5. axb5 {[%clk 0:03:00.9]} 5...
cxb5 {[%clk 0:02:46.5]} 6. Nc3 {[%clk 0:03:01.4]} 6... b4 {[%clk 0:02:41.5]} 7.
Nd5 {[%clk 0:02:21.6]} 7... e6 {[%clk 0:02:35.2]} 8. Bxc4 {[%clk 0:02:21.6]}
8... Bb7 {[%clk 0:02:24.9]} 9. Qa4+ {[%clk 0:01:55.5]} 9... Nd7 {[%clk
0:02:17.6]} 10. Nxb4 {[%clk 0:01:49.1]} 10... Bxe4 {[%clk 0:02:12.7]} 11. Nf3
{[%clk 0:01:48.4]} 11... Bxf3 {[%clk 0:02:12.2]} 12. gxf3 {[%clk 0:01:47.7]}
12... Nf6 {[%clk 0:02:07.9]} 13. Bf4 {[%clk 0:01:18.3]} 13... Bxb4+ {[%clk
0:02:00.2]} 14. Qxb4 {[%clk 0:01:19.2]} 14... Qb6 {[%clk 0:01:58.6]} 15. Qxb6
{[%clk 0:00:45.7]} 15... Nxb6 {[%clk 0:01:57.3]} 16. Bb5+ {[%clk 0:00:44.3]}
16... Ke7 {[%clk 0:01:56.4]} 17. Rc1 {[%clk 0:00:42]} 17... Nfd5 {[%clk
0:01:54.9]} 18. Bd2 {[%clk 0:00:38.6]} 18... Rhc8 {[%clk 0:01:51.6]} 19. Ke2
{[%clk 0:00:38.9]} 19... a6 {[%clk 0:01:45.1]} 20. Bd3 {[%clk 0:00:30.9]} 20...
Na4 {[%clk 0:01:41.7]} 21. Rb1 {[%clk 0:00:10.5]} 21... Rab8 {[%clk 0:01:37.9]}
22. Bxa6 {[%clk 0:00:09.1]} 22... Rc6 {[%clk 0:01:37.8]} 23. Bd3 {[%clk
0:00:08.9]} 23... Rxb2 {[%clk 0:01:34.9]} 24. Rxb2 {[%clk 0:00:09]} 24... Nxb2
{[%clk 0:01:35.8]} 25. Be4 {[%clk 0:00:09.7]} 25... f5 {[%clk 0:01:19.7]} 26.
Bxd5 {[%clk 0:00:08.7]} 26... exd5 {[%clk 0:01:20.6]} 27. Rb1 {[%clk 0:00:07.1]}
27... Rc2 {[%clk 0:01:20.7]} 28. Ke1 {[%clk 0:00:03.5]} 28... Nd3+ {[%clk
0:01:11.1]} 29. Kd1 {[%clk 0:00:03.4]} 29... Rb2 {[%clk 0:01:11.4]} 30. Ra1
{[%clk 0:00:02.4]} 30... Nxf2+ {[%clk 0:01:05]} 31. Ke2 {[%clk 0:00:02.7]} 31...
Nh3 {[%clk 0:01:05.6]} 32. Ra7+ {[%clk 0:00:03]} 32... Kf8 {[%clk 0:01:02.9]}
33. Kd3 {[%clk 0:00:03]} 33... Rb3+ {[%clk 0:00:59.7]} 34. Ke2 {[%clk
0:00:03.5]} 34... Ng1+ {[%clk 0:01:00.1]} 35. Kf2 {[%clk 0:00:02.1]} 35... Nxf3
{[%clk 0:01:00.3]} 36. Be3 {[%clk 0:00:01.1]} 36... Nh4 {[%clk 0:00:55.3]} 37.
Ra8+ {[%clk 0:00:01.4]} 37... Kf7 {[%clk 0:00:55.5]} 38. Ra7+ {[%clk 0:00:02.2]}
38... Kg6 {[%clk 0:00:56.2]} 39. Rd7 {[%clk 0:00:03]} 39... f4 {[%clk
0:00:56.1]} 40. Bd2 {[%clk 0:00:03]} 40... Rb2 {[%clk 0:00:54.2]} 41. Ke1 {[%clk
0:00:03.3]} 41... Nf3+ {[%clk 0:00:54.4]} 0-1